bitfinex/quotes_SOLUSD_20251224
["timestamp","ask_amount","ask_price","bid_price","bid_amount"]
[1766588589746,0.72,121.89,121.85,7.57866502]
[1766588590109,0.72,121.92,121.88,7.57866502]
[1766588590383,0.72,121.91,121.88,7.57866502]
[1766588590583,0.72,121.91,121.89,7.57866502]
[1766588590886,0.72,121.91,121.85,8.20620704]
[1766588591058,0.72,121.91,121.87,7.57866502]
[1766588591376,0.72,121.9,121.84,10.43767296]
[1766588591577,0.72,121.9,121.87,7.57866502]
[1766588591789,0.72,121.89,121.85,7.57866502]
[1766588592202,0.72,121.9,121.87,7.57866502]
[1766588592368,0.72,121.9,121.84,10.43767296]
[1766588592568,0.72,121.9,121.87,7.57866502]
[1766588592868,11.15767296,121.92,121.88,7.57866502]
[1766588593382,0.72,121.91,121.88,7.57866502]
[1766588593881,0.72,121.91,121.84,10.43767296]
[1766588593882,0.72,121.91,121.87,7.57866502]
[1766588594872,0.72,121.94,121.9,7.57866502]
[1766588595199,0.72,121.96,121.93,7.57866502]
[1766588595374,0.72,121.96,121.88,29.537204]
[1766588595375,0.72,121.96,121.94,7.57866502]
[1766588595679,11.15767296,121.96,121.94,7.57866502]
[1766588595989,0.72,121.96,121.94,7.57866502]
[1766588596151,0.72,121.99,121.95,7.57866502]
[1766588596357,0.82,121.98,121.92,0.82020997]
[1766588596560,0.82,121.98,121.95,7.57866502]
[1766588596780,0.1,121.98,121.92,0.82020997]
[1766588596986,7.67866502,121.98,121.91,25.41767296]
[1766588597187,0.72,121.97,121.93,7.57866502]
[1766588597504,0.72,121.96,121.92,7.57866502]
[1766588598289,0.72,121.96,121.91,25.41767296]
[1766588598494,0.72,121.96,121.87,14.98]
[1766588598668,0.72,121.93,121.89,7.57866502]
[1766588598863,0.72,121.93,121.87,25.41767296]
[1766588598864,0.72,121.93,121.88,8.20479159]
[1766588599493,0.72,121.93,121.9,7.57866502]
[1766588599680,0.72,121.93,121.88,8.20479159]
[1766588599888,0.72,121.93,121.9,7.57866502]
[1766588602192,0.72,121.93,121.86,20.51483958]
[1766588602193,7.57866502,121.91,121.84,35.49812011]
[1766588602485,7.57866502,121.9,121.85,7.57866502]
[1766588602688,0.72,121.89,121.86,7.57866502]
[1766588603081,0.72,121.89,121.85,7.57866502]
[1766588603278,8.29866502,121.88,121.82,14.98]
[1766588603593,0.72,121.87,121.83,7.57866502]
[1766588603795,0.72,121.87,121.84,7.57866502]
[1766588603991,0.72,121.87,121.83,8.20813493]
[1766588604177,0.72,121.87,121.85,7.57866502]
[1766588604576,0.72,121.87,121.84,7.57866502]
[1766588604784,0.72,121.87,121.82,18.64626759]
[1766588604785,14.98,121.89,121.85,7.57866502]
[1766588604983,14.98,121.89,121.83,8.20814031]
[1766588604984,0.72,121.88,121.84,7.57866502]
[1766588605190,0.72,121.89,121.84,8.20689382]
[1766588605498,0.72,121.89,121.86,7.57866502]
[1766588606596,21.22392514,121.93,121.87,7.57866502]
[1766588606597,8.92209819,121.93,121.87,7.57866502]
[1766588606785,0.72,121.92,121.89,7.57866502]
[1766588607496,8.29866502,121.92,121.87,7.57866502]
[1766588607670,0.72,121.91,121.85,8.20662186]
[1766588607866,0.72,121.9,121.85,8.20662186]
[1766588608071,0.72,121.9,121.84,8.20728136]
[1766588608273,8.29866502,121.89,121.84,7.57866502]
[1766588608487,0.72,121.88,121.84,7.57866502]
[1766588608968,0.72,121.88,121.81,20.52314732]
[1766588608969,8.29866502,121.88,121.82,8.20866043]
[1766588609279,0.72,121.86,121.82,7.57866502]
[1766588609475,0.72,121.86,121.8,23.19001982]
[1766588609678,0.72,121.83,121.79,8.21062827]
[1766588609980,0.72,121.86,121.82,7.57866502]
[1766588610186,0.72,121.86,121.83,7.57866502]
[1766588610788,0.72,121.86,121.78,11.25882585]
[1766588610789,0.72,121.86,121.82,8.20866001]
[1766588610973,0.72,121.86,121.83,7.57866502]
[1766588611173,19.36272301,121.88,121.83,7.57866502]
[1766588611475,26.94138803,121.88,121.81,8.20926019]
[1766588611680,0.72,121.85,121.79,8.2107233]
[1766588611867,8.29866502,121.85,121.8,7.57866502]
[1766588612066,0.72,121.85,121.8,8.20996973]
[1766588612271,11.15767296,121.85,121.81,7.57866502]
[1766588612489,0.72,121.87,121.83,7.57866502]
[1766588612779,23.27866502,121.87,121.81,8.20949792]
[1766588613092,23.27866502,121.87,121.83,7.57866502]
[1766588613284,31.48452832,121.87,121.81,8.20949792]
[1766588613598,0.72,121.86,121.83,7.57866502]
[1766588613895,11.15767296,121.88,121.85,7.57866502]
[1766588614395,11.15767296,121.88,121.86,7.57866502]
[1766588614977,11.15767296,121.88,121.83,28.72831988]
[1766588615174,0.72,121.87,121.84,7.57866502]
[1766588616395,10.43767296,121.88,121.85,7.57866502]
[1766588616875,11.14767296,121.88,121.85,7.57866502]
[1766588617198,0.72,121.87,121.85,7.57866502]
[1766588619108,10.43767296,121.88,121.85,7.57866502]
[1766588619303,11.15767296,121.88,121.85,7.57866502]
[1766588620202,0.72,121.88,121.86,7.57866502]
[1766588620993,0.72,121.88,121.85,7.57866502]
[1766588621503,0.72,121.88,121.86,7.57866502]
[1766588622079,14.98,121.9,121.86,7.57866502]
[1766588622300,14.98,121.9,121.87,7.57866502]
[1766588622479,14.98,121.9,121.83,20.51976077]
[1766588622480,0.72,121.89,121.84,8.20726472]
[1766588622796,0.72,121.89,121.86,7.57866502]
[1766588623107,0.72,121.89,121.85,7.57866502]
[1766588623697,19.3607011,121.91,121.85,8.20670394]
[1766588623902,19.3607011,121.91,121.87,7.57866502]
[1766588623903,19.36045574,121.91,121.87,7.57866502]
[1766588624207,0.72,121.9,121.87,7.57866502]
[1766588625390,0.72,121.9,121.88,7.57866502]
[1766588625708,0.72,121.89,121.83,73.33767296]
[1766588625910,0.72,121.88,121.84,7.57866502]
[1766588626212,0.72,121.87,121.83,7.57866502]
[1766588626432,0.72,121.86,121.8,33.62756553]
[1766588626716,0.72,121.85,121.8,23.18989257]
[1766588627017,0.72,121.84,121.8,18.01633798]
[1766588627390,0.72,121.84,121.81,7.57866502]
[1766588628415,0.72,121.84,121.79,8.21063951]
[1766588628599,0.72,121.84,121.8,7.57866502]
[1766588629613,0.72,121.84,121.79,8.21063951]
[1766588629918,0.72,121.84,121.8,7.57866502]
[1766588630149,0.72,121.83,121.8,7.57866502]
[1766588630418,0.72,121.83,121.79,8.21063951]
[1766588630419,0.72,121.83,121.78,10.43767296]
[1766588630611,0.72,121.82,121.78,7.57866502]
[1766588630820,0.72,121.8,121.76,7.57866502]
[1766588631314,0.72,121.8,121.77,7.57866502]
[1766588632120,0.72,121.8,121.77,4.67828064]
[1766588632418,0.72,121.8,121.76,8.21282835]
[1766588632610,0.72,121.8,121.77,4.67828064]
[1766588633314,8.21021505,121.8,121.76,4.67828064]
[1766588633517,0.72,121.79,121.76,4.67828064]
[1766588633909,0.72,121.78,121.75,4.87828064]
[1766588634247,0.72,121.78,121.75,0.2]
[1766588635721,0.72,121.76,121.71,23.39584679]
[1766588635915,0.72,121.76,121.72,4.67828064]
[1766588636117,0.72,121.75,121.71,28.07412743]
[1766588636501,0.72,121.75,121.72,4.67828064]
[1766588637215,0.72,121.75,121.72,12.89385077]
[1766588637505,0.72,121.75,121.72,4.67828064]
[1766588638020,0.72,121.75,121.71,0.2]
[1766588638318,0.72,121.74,121.71,4.87828064]
[1766588639305,0.72,121.73,121.71,0.2]
[1766588639498,0.72,121.73,121.7,0.2]
[1766588639706,0.72,121.75,121.72,4.67828064]
[1766588639920,0.72,121.75,121.71,4.67828064]
[1766588640131,0.72,121.74,121.7,4.87828064]
[1766588640495,4.67828064,121.72,121.67,0.2]
[1766588640810,0.72,121.68,121.64,4.87828064]
[1766588641121,0.72,121.67,121.64,4.87828064]
[1766588641834,10.43767296,121.69,121.66,4.67828064]
[1766588642134,11.15767296,121.7,121.66,4.67828064]
[1766588642135,0.72,121.7,121.66,4.67828064]
[1766588642428,0.72,121.69,121.65,4.67828064]
[1766588643325,0.72,121.69,121.65,12.89848564]
[1766588643524,11.15767296,121.71,121.68,4.67828064]
[1766588644331,10.43767296,121.71,121.67,4.67828064]
[1766588644630,0.72,121.69,121.65,4.67828064]
[1766588645030,0.72,121.69,121.65,12.89844117]
[1766588645732,0.72,121.69,121.66,4.67828064]
[1766588645913,11.15767296,121.71,121.68,4.67828064]
[1766588646113,11.15767296,121.71,121.66,0.71]
[1766588646114,0.72,121.7,121.67,4.67828064]
[1766588648334,0.68,121.72,121.67,8.21884777]
[1766588648508,0.68,121.72,121.69,4.67828064]
[1766588648715,0.68,121.71,121.67,4.67828064]
[1766588651928,0.68,121.71,121.68,4.67828064]
[1766588652321,0.68,121.74,121.7,5.38828064]
[1766588652651,0.68,121.75,121.72,4.67828064]
[1766588652842,0.68,121.75,121.68,8.21819574]
[1766588653055,0.68,121.72,121.68,4.67828064]
[1766588653615,0.68,121.71,121.66,23.21933448]
[1766588653811,0.68,121.71,121.65,0.71]
[1766588653812,0.68,121.71,121.67,4.67828064]
[1766588654051,0.68,121.7,121.67,4.67828064]
[1766588654544,0.68,121.7,121.66,8.21961105]
[1766588654842,0.68,121.7,121.67,4.67828064]
[1766588656037,8.2172534,121.7,121.67,4.67828064]
[1766588656337,0.68,121.69,121.66,4.67828064]
[1766588657019,10.43767296,121.71,121.68,4.67828064]
[1766588657230,0.68,121.71,121.68,4.67828064]
[1766588657518,0.68,121.7,121.67,4.67828064]
[1766588658542,20.35828064,121.72,121.67,13.60699008]
[1766588658720,0.68,121.71,121.68,4.67828064]
[1766588659242,0.68,121.71,121.67,4.67828064]
[1766588659545,0.68,121.7,121.66,4.67828064]
[1766588660842,0.68,121.7,121.65,8.93018977]
[1766588661146,0.68,121.7,121.66,4.67828064]
[1766588661939,0.68,121.7,121.67,4.67828064]
[1766588663242,0.68,121.7,121.66,5.38828064]
[1766588663542,0.68,121.68,121.64,10.63767296]
[1766588663722,0.68,121.67,121.64,0.2]
[1766588663920,4.67828064,121.67,121.64,0.2]
[1766588664118,4.67828064,121.67,121.6,35.55815629]
[1766588664119,4.67828064,121.66,121.61,4.67828064]
[1766588664321,0.68,121.64,121.6,4.67828064]
[1766588664753,0.68,121.64,121.61,4.67828064]
[1766588665425,30.7959536,121.66,121.61,5.38828064]
[1766588665828,0.68,121.65,121.61,4.67828064]
[1766588666147,0.68,121.65,121.6,8.93309622]
[1766588666332,5.35828064,121.65,121.6,13.61137686]
[1766588666533,5.35828064,121.65,121.6,8.93309622]
[1766588666737,5.35828064,121.65,121.61,4.67828064]
[1766588666938,0.68,121.65,121.61,4.67828064]
[1766588667525,0.68,121.65,121.6,8.93309622]
[1766588667727,5.35828064,121.65,121.61,4.67828064]
[1766588668028,0.68,121.65,121.61,4.67828064]
[1766588668446,8.90034467,121.65,121.61,4.67828064]
[1766588668655,0.68,121.63,121.6,4.67828064]
[1766588669146,0.68,121.63,121.59,4.87828064]
[1766588669650,5.35828064,121.62,121.59,0.2]
[1766588670054,0.68,121.61,121.59,0.2]
[1766588670634,5.35828064,121.61,121.59,0.2]
[1766588670835,0.68,121.61,121.59,0.2]
[1766588671547,24.05771005,121.63,121.59,4.87828064]
[1766588671743,10.43767296,121.63,121.61,4.67828064]
[1766588672251,0.68,121.64,121.61,4.67828064]
[1766588673762,11.11767296,121.66,121.63,4.67828064]
[1766588673969,19.33741326,121.66,121.62,4.67828064]
[1766588674276,0.68,121.65,121.61,5.38828064]
[1766588674962,0.68,121.65,121.62,4.67828064]
[1766588676576,0.68,121.65,121.59,0.2]
[1766588676866,0.68,121.63,121.6,4.67828064]
[1766588677646,15.02,121.64,121.61,5.37828064]
[1766588677856,0.72,121.65,121.62,4.67828064]
[1766588678037,15.74,121.65,121.62,4.67828064]
[1766588678242,15.74,121.65,121.61,0.7]
[1766588678455,23.96039432,121.65,121.61,5.37828064]
[1766588678629,23.96039432,121.65,121.6,8.22363618]
[1766588678630,0.72,121.64,121.6,4.67828064]
[1766588682063,0.72,121.64,121.6,1.8388995]
[1766588682433,0.72,121.63,121.6,1.8388995]
[1766588683056,15.02,121.64,121.61,1.8388995]
[1766588683254,10.43767296,121.66,121.63,1.8388995]
[1766588683462,10.43767296,121.66,121.6,8.22366732]
[1766588683463,10.43767296,121.66,121.64,1.8388995]
[1766588683947,10.43767296,121.66,121.63,4.68876565]
[1766588683948,11.15767296,121.66,121.63,4.68876565]
[1766588684847,0.72,121.65,121.61,8.2225877]
[1766588685172,0.72,121.65,121.63,4.68876565]
[1766588685363,0.72,121.65,121.62,4.68876565]
[1766588687866,0.72,121.65,121.61,8.9225877]
[1766588688061,0.72,121.65,121.61,13.61135335]
[1766588688366,0.72,121.65,121.62,4.68876565]
[1766588690196,10.43767296,121.67,121.64,5.38876565]
[1766588690371,0.72,121.7,121.66,5.38876565]
[1766588690676,11.15767296,121.7,121.67,4.68876565]
[1766588690962,11.15767296,121.7,121.66,0.7]
[1766588691166,0.72,121.7,121.67,4.68876565]
[1766588691551,11.15767296,121.7,121.67,4.68876565]
[1766588691976,11.15767296,121.7,121.67,7.61512371]
[1766588692265,15.74,121.71,121.68,7.61512371]
[1766588692444,26.17767296,121.71,121.68,7.61512371]
[1766588692643,0.72,121.73,121.7,7.61512371]
[1766588692954,0.72,121.73,121.71,7.61512371]
[1766588693380,11.15767296,121.74,121.71,7.61512371]
[1766588693557,15.02,121.75,121.72,7.61512371]
[1766588694073,0.72,121.73,121.7,7.61512371]
[1766588694243,0.72,121.73,121.68,0.7]
[1766588694440,0.72,121.72,121.67,23.91867517]
[1766588694671,0.72,121.72,121.68,7.61512371]
[1766588695040,8.33512371,121.71,121.66,7.61512371]
[1766588695361,0.72,121.7,121.66,7.61512371]
[1766588695874,7.61512371,121.69,121.64,15.0]
[1766588696053,0.72,121.68,121.64,7.61512371]
[1766588696255,0.72,121.68,121.64,8.31512371]
[1766588697068,15.74,121.69,121.65,8.31512371]
[1766588697457,15.74,121.69,121.66,7.61512371]
[1766588698174,15.02,121.69,121.66,7.61512371]
[1766588698881,15.02,121.69,121.65,8.92026945]
[1766588698882,0.72,121.68,121.65,7.61512371]
[1766588699273,0.72,121.68,121.64,0.7]
[1766588699464,0.72,121.68,121.64,8.31512371]
[1766588700072,0.72,121.68,121.65,7.61512371]
[1766588700269,15.74,121.69,121.65,8.31512371]
[1766588700975,0.72,121.68,121.65,7.61512371]
[1766588701152,0.72,121.68,121.64,7.61512371]
[1766588702183,0.72,121.68,121.65,7.61512371]
[1766588705380,15.0,121.71,121.67,8.31512371]
[1766588705577,15.0,121.71,121.68,7.61512371]
[1766588705950,0.72,121.73,121.69,0.7]
[1766588706180,15.72,121.73,121.7,7.61512371]
[1766588706687,0.72,121.72,121.65,28.77101152]
[1766588706890,0.72,121.71,121.67,7.61512371]
[1766588707060,0.72,121.7,121.67,7.61512371]
[1766588707373,15.72,121.7,121.67,7.61512371]
[1766588708272,15.0,121.7,121.68,7.61512371]
[1766588708483,23.89584398,121.72,121.68,0.72]
[1766588708776,23.21584398,121.72,121.68,7.61512371]
[1766588708978,23.89584398,121.72,121.68,7.61512371]
[1766588709182,0.68,121.71,121.68,7.61512371]
[1766588709386,0.68,121.71,121.69,7.61512371]
[1766588709989,0.68,121.71,121.68,7.61512371]
[1766588713382,0.68,121.71,121.67,8.9388439]
[1766588713705,0.68,121.71,121.67,7.61512371]
[1766588713995,8.21636478,121.71,121.65,8.21999145]
[1766588714190,0.68,121.69,121.65,7.61512371]
[1766588714395,7.61512371,121.68,121.63,8.33512371]
[1766588714706,0.68,121.67,121.63,7.61512371]
[1766588715663,0.68,121.66,121.62,16.55739063]
[1766588716162,0.68,121.66,121.63,7.61512371]
[1766588716576,0.68,121.67,121.63,16.55666253]
[1766588716777,0.68,121.67,121.64,7.61512371]
[1766588717186,0.68,121.67,121.63,8.94153882]
[1766588717403,0.68,121.67,121.64,7.61512371]
[1766588718131,8.29512371,121.66,121.61,15.72]
[1766588718284,0.68,121.64,121.6,7.61512371]
[1766588718615,0.68,121.64,121.6,8.33512371]
[1766588718803,0.68,121.64,121.6,8.94360923]
[1766588718993,0.68,121.64,121.6,16.55873294]
[1766588719183,0.68,121.64,121.61,7.61512371]
[1766588720283,0.68,121.64,121.6,8.22360923]
[1766588720600,0.68,121.64,121.61,7.61512371]
[1766588720902,0.68,121.64,121.6,8.22360923]
[1766588721201,0.68,121.64,121.61,7.61512371]
[1766588721613,0.68,121.65,121.61,8.33512371]
[1766588721785,0.68,121.65,121.61,7.61512371]
[1766588721985,8.29512371,121.65,121.61,7.61512371]
[1766588722908,8.29512371,121.65,121.6,8.94360923]
[1766588723111,0.68,121.65,121.61,8.94300618]
[1766588723315,0.68,121.65,121.61,16.55812989]
[1766588723610,0.68,121.65,121.61,8.33512371]
[1766588724393,0.68,121.65,121.61,0.72]
[1766588724592,0.68,121.65,121.61,8.33512371]
[1766588725686,0.68,121.64,121.61,7.61512371]
[1766588725916,0.68,121.64,121.6,8.22338165]
[1766588726111,0.68,121.64,121.61,2.87317257]
[1766588726295,24.61926977,121.67,121.62,3.59317257]
[1766588726501,0.68,121.66,121.62,3.59317257]
[1766588726796,121.15317257,121.67,121.63,3.59317257]
[1766588727485,118.28,121.67,121.64,2.87317257]
[1766588727888,103.28,121.67,121.63,0.72]
[1766588728116,103.28,121.67,121.63,3.59317257]
[1766588728916,103.28,121.67,121.64,2.87317257]
[1766588729119,10.43767296,121.68,121.65,2.87317257]
[1766588729313,0.68,121.7,121.65,0.72]
[1766588729504,0.68,121.7,121.67,2.87317257]
[1766588729704,11.11767296,121.7,121.66,3.59317257]
[1766588730419,19.33464983,121.7,121.66,3.59317257]
[1766588730621,11.11767296,121.7,121.66,3.59317257]
[1766588730820,11.11767296,121.7,121.66,11.81261602]
[1766588731214,11.11767296,121.7,121.66,3.59317257]
[1766588731425,11.11767296,121.7,121.67,2.87317257]
[1766588732729,11.11767296,121.7,121.66,11.81278808]
[1766588734326,11.11767296,121.7,121.67,2.87317257]
[1766588735140,15.02,121.71,121.68,2.87317257]
[1766588735297,15.02,121.71,121.68,3.59317257]
[1766588735639,0.68,121.7,121.66,11.09255366]
[1766588735800,0.68,121.7,121.66,11.81255366]
[1766588736225,0.68,121.7,121.66,8.93938109]
[1766588736428,0.68,121.7,121.66,3.59317257]
[1766588736727,0.68,121.7,121.66,2.87317257]
[1766588736935,0.66,121.75,121.7,0.71]
[1766588737112,8.21353542,121.76,121.73,2.87317257]
[1766588737113,0.68,121.76,121.73,2.87317257]
[1766588737496,0.68,121.76,121.74,2.87317257]
[1766588737806,0.68,121.76,121.73,2.87317257]
[1766588738012,0.68,121.76,121.72,2.87317257]
[1766588738219,0.68,121.76,121.73,2.87317257]
[1766588738821,0.68,121.76,121.72,3.55317257]
[1766588739015,0.68,121.75,121.71,2.87317257]
[1766588739600,3.55317257,121.75,121.7,3.55317257]
[1766588739806,0.68,121.72,121.68,2.87317257]
[1766588740110,0.68,121.72,121.67,8.8986265]
[1766588740529,0.68,121.72,121.68,2.87317257]
[1766588740742,0.68,121.71,121.67,3.55317257]
[1766588740916,0.68,121.71,121.67,2.87317257]
[1766588741302,0.68,121.7,121.66,13.99084553]
[1766588741616,0.68,121.7,121.66,3.55317257]
[1766588741812,0.68,121.7,121.64,15.68]
[1766588741813,2.87317257,121.7,121.64,15.68]
[1766588742124,0.68,121.69,121.65,7.61716584]
[1766588742628,30.83346844,121.71,121.66,7.61716584]
[1766588742835,0.68,121.7,121.66,8.29716584]
[1766588743506,0.68,121.7,121.66,0.68]
[1766588743827,0.68,121.7,121.66,7.61716584]
[1766588745831,0.68,121.7,121.65,8.90009396]
[1766588746011,8.21703973,121.7,121.66,7.61716584]
[1766588746206,0.68,121.69,121.66,7.61716584]
[1766588746919,0.68,121.69,121.65,8.29716584]
[1766588747124,7.61716584,121.67,121.62,7.61716584]
[1766588747304,0.68,121.65,121.61,8.29716584]
[1766588748022,8.90040427,121.65,121.61,0.68]
[1766588748333,0.68,121.65,121.61,8.29716584]
[1766588748520,8.90035909,121.65,121.61,8.29716584]
[1766588748931,0.68,121.65,121.61,8.29716584]
[1766588749308,0.68,121.65,121.61,0.68]
[1766588749508,0.68,121.65,121.61,8.29716584]
[1766588750211,0.68,121.64,121.61,7.61716584]
[1766588751223,15.0,121.65,121.62,7.61716584]
[1766588751516,31.70366121,121.68,121.64,8.29716584]
[1766588751517,11.11767296,121.68,121.64,8.29716584]
[1766588751728,26.11767296,121.68,121.64,8.29716584]
[1766588752237,26.11767296,121.68,121.66,7.61716584]
[1766588752238,15.68,121.68,121.66,7.61716584]
[1766588752437,0.68,121.7,121.66,7.61716584]
[1766588753620,0.68,121.69,121.66,7.61716584]
[1766588754114,0.68,121.69,121.66,4.68704616]
[1766588756545,0.68,121.69,121.67,4.68704616]
[1766588756840,25.43767296,121.71,121.68,4.68704616]
[1766588757218,15.0,121.71,121.68,4.68704616]
[1766588757419,15.0,121.71,121.68,5.36704616]
[1766588757924,15.68,121.73,121.69,4.68704616]
[1766588758451,15.68,121.73,121.69,5.36704616]
[1766588758634,15.68,121.73,121.7,4.68704616]
[1766588760024,15.0,121.73,121.71,4.68704616]
[1766588760243,15.0,121.73,121.7,5.36704616]
[1766588760431,23.2150717,121.73,121.7,5.36704616]
[1766588760627,23.2150717,121.73,121.68,4.68704616]
[1766588760628,0.68,121.72,121.68,4.68704616]
[1766588760828,0.68,121.71,121.68,4.68704616]
[1766588761030,0.68,121.71,121.66,8.21932094]
[1766588761223,0.68,121.71,121.67,4.68704616]
[1766588761433,0.68,121.71,121.66,8.89932094]
[1766588761947,0.68,121.71,121.67,4.68704616]
[1766588762453,0.68,121.7,121.66,5.36704616]
[1766588762828,0.68,121.7,121.67,4.68704616]
[1766588763151,0.68,121.7,121.66,5.36704616]
[1766588763355,0.68,121.7,121.64,26.11767296]
[1766588763356,0.68,121.69,121.64,26.11767296]
[1766588763522,0.68,121.69,121.64,18.65828027]
[1766588763723,4.68704616,121.69,121.65,0.68]
[1766588764323,5.36704616,121.69,121.65,0.68]
[1766588764529,0.68,121.68,121.64,5.36704616]
[1766588764735,5.36704616,121.68,121.64,0.68]
[1766588764927,10.43767296,121.72,121.6,8.22311668]
[1766588764928,5.36704616,121.66,121.6,8.22311668]
[1766588765134,5.36704616,121.66,121.62,0.68]
[1766588765432,0.68,121.66,121.62,5.36704616]
[1766588767252,0.68,121.66,121.62,4.68704616]
[1766588767750,0.66,121.65,121.62,4.68704616]
[1766588768835,0.66,121.65,121.61,5.39704616]
[1766588769049,0.66,121.65,121.62,4.68704616]
[1766588769233,10.43767296,121.67,121.64,4.68704616]
[1766588770049,10.43767296,121.67,121.64,1.83782531]
[1766588771950,10.43767296,121.67,121.64,4.68839313]
[1766588772128,8.87836331,121.68,121.64,5.39839313]
[1766588773324,0.66,121.67,121.62,0.71]
[1766588773529,0.66,121.66,121.62,4.68839313]
[1766588774222,0.66,121.65,121.61,19.68839313]
[1766588774430,0.66,121.64,121.6,4.68839313]
[1766588774733,0.66,121.64,121.61,4.68839313]
[1766588774941,15.0,121.65,121.61,5.39839313]
[1766588775151,15.66,121.65,121.61,5.39839313]
[1766588775644,15.66,121.65,121.62,4.68839313]
[1766588777261,0.66,121.66,121.62,5.39839313]
[1766588777457,8.21860404,121.68,121.63,4.68839313]
[1766588777671,23.89860404,121.68,121.64,5.39839313]
[1766588777959,0.66,121.65,121.61,12.91098949]
[1766588778453,4.68839313,121.65,121.6,8.93349478]
[1766588778658,0.66,121.64,121.6,5.39839313]
[1766588778851,0.66,121.64,121.6,4.68839313]
[1766588779052,0.66,121.63,121.59,8.42431058]
[1766588779252,0.66,121.63,121.59,4.88839313]
[1766588779654,0.66,121.63,121.59,13.82265751]
[1766588780271,12.90937905,121.64,121.6,0.71]
[1766588780446,8.22098592,121.64,121.6,0.71]
[1766588780640,12.90937905,121.64,121.6,0.71]
[1766588781366,8.22098592,121.64,121.6,0.71]
[1766588781570,28.58899018,121.65,121.61,0.71]
[1766588782056,27.92899018,121.65,121.6,4.68839313]
[1766588782260,0.66,121.64,121.6,4.68839313]
[1766588782438,0.66,121.64,121.59,9.13426438]
[1766588782635,0.66,121.64,121.6,4.68839313]
[1766588783064,5.34839313,121.64,121.59,13.82265751]
[1766588783741,5.34839313,121.64,121.59,9.13426438]
[1766588783939,5.34839313,121.64,121.59,13.82265751]
[1766588784147,0.66,121.64,121.6,4.68839313]
[1766588784352,11.09767296,121.65,121.61,5.39839313]
[1766588784553,20.36839313,121.65,121.61,5.39839313]
[1766588785058,20.36839313,121.65,121.61,4.68839313]
[1766588785468,0.66,121.64,121.61,4.68839313]
[1766588785671,15.68,121.65,121.61,5.39839313]
[1766588786467,23.90048513,121.65,121.61,5.39839313]
[1766588788391,10.43767296,121.66,121.64,4.68839313]
[1766588788704,4.68839313,121.69,121.64,4.68839313]
[1766588788850,0.66,121.68,121.64,4.68839313]
[1766588789376,12.90612097,121.69,121.65,0.71]
[1766588789567,13.56612097,121.69,121.65,0.71]
[1766588791280,0.66,121.68,121.64,4.68839313]
[1766588792285,8.87828856,121.68,121.64,4.68839313]
[1766588792984,13.56668169,121.68,121.63,8.9310475]
[1766588793194,0.66,121.66,121.62,12.91039714]
[1766588793364,0.66,121.66,121.62,13.62039714]
[1766588793559,0.66,121.66,121.62,5.39839313]
[1766588793782,0.66,121.65,121.61,13.6210981]
[1766588794091,0.66,121.65,121.62,1.8385865]
[1766588794495,0.66,121.65,121.61,10.77129147]
[1766588794700,0.66,121.64,121.6,1.8385865]
[1766588794875,0.66,121.63,121.59,2.7485865]
[1766588795271,0.66,121.63,121.59,9.13423132]
[1766588795570,0.66,121.63,121.59,10.97281782]
[1766588795891,0.66,121.63,121.59,9.13423132]
[1766588796092,0.66,121.63,121.59,10.97281782]
[1766588796389,0.66,121.62,121.59,0.2]
[1766588796588,0.72,121.61,121.59,0.2]
[1766588796769,2.5585865,121.61,121.59,0.2]
[1766588797087,0.72,121.59,121.54,10.76594768]
[1766588797264,0.65,121.57,121.52,0.91]
[1766588797460,2.4885865,121.57,121.52,2.7485865]
[1766588797690,17.5085865,121.57,121.52,2.7485865]
[1766588798079,4.69736147,121.56,121.52,0.2]
[1766588798397,0.65,121.55,121.52,0.2]